bitfinex/quotes_SOLUSD_20250425
["timestamp","ask_amount","ask_price","bid_price","bid_amount"]
[1745564271861,0.03,153.49,153.44,38.12024886]
[1745564271862,10.84562468,153.48,153.44,23.86562468]
[1745564272061,10.84562468,153.48,153.44,19.5368445]
[1745564272263,10.84562468,153.47,153.44,13.02]
[1745564273269,10.84562468,153.48,153.44,13.02]
[1745564273469,12.30282316,153.49,153.44,30.38280899]
[1745564273679,1.45719848,153.49,153.45,10.98778625]
[1745564273873,0.03,153.49,153.46,10.84562468]
[1745564274076,10.87562468,153.49,153.45,10.98778625]
[1745564274267,10.87562468,153.49,153.45,0.14216157]
[1745564274467,10.87562468,153.49,153.45,6.65893436]
[1745564275082,10.87562468,153.49,153.45,17.50455904]
[1745564275595,10.87562468,153.49,153.45,6.65893436]
[1745564275786,0.03,153.49,153.46,10.84562468]
[1745564275978,0.03,153.49,153.47,10.84562468]
[1745564277984,0.03,153.49,153.47,17.36148873]
[1745564278196,0.03,153.49,153.48,10.84562468]
[1745564279296,0.03,153.49,153.47,6.9543319]
[1745564280082,0.03,153.49,153.46,13.47055147]
[1745564280288,6.9543319,153.48,153.45,0.14216157]
[1745564280485,1.45719848,153.49,153.45,7.09649347]
[1745564280486,6.9843319,153.49,153.45,7.09649347]
[1745564282199,0.03,153.49,153.45,13.61326324]
[1745564282398,0.03,153.49,153.46,6.9543319]
[1745564282704,0.03,153.49,153.47,6.9543319]
[1745564283890,0.03,153.49,153.47,13.47023489]
[1745564284292,0.03,153.49,153.47,6.51590299]
[1745564284495,0.03,153.49,153.48,6.9543319]
[1745564286207,0.03,153.49,153.48,13.61200037]
[1745564296303,0.03,153.49,153.48,33.56444439]
[1745564296613,0.03,153.56,153.49,18.79181043]
[1745564296917,0.03,153.56,153.54,6.9543319]
[1745564298414,0.03,153.56,153.51,0.14216157]
[1745564298594,6.9543319,153.55,153.5,0.14216157]
[1745564298919,8.38153038,153.54,153.5,7.09649347]
[1745564300422,6.9543319,153.53,153.49,81.2]
[1745564300594,8.38153038,153.53,153.49,88.1543319]
[1745564301805,1.42719848,153.53,153.49,88.1543319]
[1745564302424,8.38153038,153.53,153.49,88.1543319]
[1745564302900,6.9543319,153.52,153.49,81.2]
[1745564303101,6.9543319,153.52,153.48,7.09649347]
[1745564303596,8.38153038,153.51,153.47,19.8943319]
[1745564304018,6.9543319,153.5,153.47,12.94]
[1745564304206,1.42719848,153.49,153.45,6.9543319]
[1745564304804,8.38153038,153.49,153.45,6.9543319]
[1745564305004,8.38153038,153.49,153.46,2.39372976]
[1745564305206,6.9543319,153.48,153.46,2.39372976]
[1745564305516,8.38153038,153.49,153.46,2.39372976]
[1745564306222,8.38153038,153.49,153.45,6.9543319]
[1745564307620,8.38153038,153.49,153.44,7.09649347]
[1745564307806,8.38153038,153.49,153.45,2.39380948]
[1745564308402,6.9543319,153.48,153.45,2.39380948]
[1745564308602,6.9543319,153.48,153.44,7.09649347]
[1745564309829,6.9543319,153.48,153.44,6.9543319]
[1745564310030,1.42719848,153.47,153.43,101.0943319]
[1745564310633,1.42719848,153.47,153.44,2.39421566]
[1745564311400,6.9543319,153.48,153.44,9.34854756]
[1745564311605,6.9543319,153.48,153.44,6.9543319]
[1745564314727,1.42719848,153.47,153.44,6.9543319]
[1745564314934,6.9543319,153.46,153.41,0.063]
[1745564315114,8.38153038,153.45,153.41,7.0173319]
[1745564315826,6.9543319,153.44,153.41,0.063]
[1745564316735,1.42719848,153.43,153.41,0.063]
[1745564317733,8.38153038,153.44,153.41,0.063]
[1745564318030,6.9543319,153.43,153.41,0.063]
[1745564318228,1.42719848,153.42,153.41,0.063]
[1745564318823,6.9543319,153.43,153.41,0.063]
[1745564319210,6.9543319,153.44,153.41,0.063]
[1745564319434,1.42719848,153.43,153.41,0.063]
[1745564320235,8.38153038,153.43,153.41,0.063]
[1745564321724,1.42719848,153.43,153.41,0.063]
[1745564324035,6.9543319,153.45,153.41,7.0173319]
[1745564324334,1.42719848,153.44,153.41,7.0173319]
[1745564326541,27.42719848,153.46,153.43,6.9543319]
[1745564327030,1.42719848,153.46,153.43,6.9543319]
[1745564327431,1.42719848,153.46,153.44,6.9543319]
[1745564327632,1.42719848,153.46,153.43,6.9543319]
[1745564331544,6.9543319,153.45,153.41,7.15949347]
[1745564331841,6.9543319,153.45,153.41,13.67792076]
[1745564332017,8.38153038,153.46,153.41,13.67792076]
[1745564332838,8.38153038,153.46,153.42,6.9543319]
[1745564333629,8.38153038,153.46,153.42,13.47233792]
[1745564334442,8.38153038,153.46,153.42,6.9543319]
[1745564335644,1.42719848,153.46,153.42,6.9543319]
[1745564336441,8.38153038,153.46,153.41,0.20516157]
[1745564336643,8.38153038,153.46,153.42,6.9543319]
[1745564338033,1.42719848,153.46,153.42,13.47230352]
[1745564339047,1.42719848,153.46,153.42,6.9543319]
[1745564339645,1.42719848,153.46,153.43,6.9543319]
[1745564340449,1.42719848,153.46,153.42,6.9543319]
[1745564342231,1.42719848,153.46,153.42,13.47235147]
[1745564342651,1.42719848,153.46,153.44,6.9543319]
[1745564342857,8.2277,153.51,153.45,6.9543319]
[1745564342858,1.42719848,153.5,153.45,6.9543319]
[1745564343066,27.42719848,153.5,153.46,6.9543319]
[1745564343568,34.38153038,153.5,153.46,6.9543319]
[1745564344771,34.38153038,153.5,153.45,6.9543319]
[1745564345169,6.9543319,153.49,153.44,7.09649347]
[1745564345369,1.42719848,153.48,153.44,7.09649347]
[1745564346143,6.9543319,153.47,153.43,19.8943319]
[1745564346438,8.38153038,153.47,153.43,19.8943319]
[1745564346865,6.9543319,153.45,153.42,81.2]
[1745564347165,1.42719848,153.44,153.42,81.2]
[1745564348183,6.9543319,153.45,153.42,81.2]
[1745564348954,6.9543319,153.46,153.42,81.2]
[1745564349162,1.42719848,153.45,153.42,81.2]
[1745564349968,1.42719848,153.47,153.43,6.9543319]
[1745564351169,1.42719848,153.47,153.44,6.9543319]
[1745564352864,1.42719848,153.47,153.43,13.47189088]
[1745564353170,1.42719848,153.47,153.43,6.9543319]
[1745564353846,8.38153038,153.47,153.43,6.9543319]
[1745564355341,8.38153038,153.47,153.42,13.47233446]
[1745564356268,8.38153038,153.47,153.43,2.39651266]
[1745564356859,8.38153038,153.47,153.43,9.35084456]
[1745564357043,8.38153038,153.47,153.43,6.9543319]
[1745564358854,8.38153038,153.47,153.42,13.47233446]
[1745564359375,8.38153038,153.47,153.43,2.39790996]
[1745564359949,6.9543319,153.45,153.43,2.39790996]
[1745564360282,26.0,153.48,153.41,0.063]
[1745564360283,8.38153038,153.44,153.41,0.063]
[1745564360484,1.42719848,153.44,153.41,0.063]
[1745564360786,1.42719848,153.45,153.41,7.0173319]
[1745564360963,1.42719848,153.45,153.42,2.39830038]
[1745564361656,1.42719848,153.45,153.42,9.35263228]
[1745564361863,1.42719848,153.45,153.42,6.9543319]
[1745564362574,1.42719848,153.45,153.41,13.53554413]
[1745564362748,8.38153038,153.45,153.41,13.53554413]
[1745564363575,1.42719848,153.45,153.41,13.53554413]
[1745564364248,1.42719848,153.45,153.42,6.9543319]
[1745564365250,1.42719848,153.47,153.43,6.9543319]
[1745564365649,1.42719848,153.47,153.44,6.9543319]
[1745564368163,1.42719848,153.47,153.43,13.47163205]
[1745564371184,1.42719848,153.47,153.43,6.9543319]
[1745564371480,8.38153038,153.47,153.43,6.9543319]
[1745564372270,6.9543319,153.45,153.41,7.0173319]
[1745564372462,1.42719848,153.44,153.41,7.0173319]
[1745564373570,6.9543319,153.43,153.41,0.063]
[1745564373877,1.42719848,153.44,153.41,0.063]
[1745564373878,6.9543319,153.44,153.41,0.063]
[1745564374277,1.42719848,153.43,153.41,0.063]
[1745564374466,6.9543319,153.44,153.41,0.063]
[1745564374661,1.42719848,153.43,153.41,0.063]
[1745564375884,8.38153038,153.43,153.41,0.063]
[1745564377074,1.42719848,153.43,153.41,0.063]
[1745564378859,1.42719848,153.44,153.42,6.9543319]
[1745564379269,1.42719848,153.44,153.41,7.0173319]
[1745564381380,1.42719848,153.44,153.41,0.063]
[1745564381767,8.38153038,153.44,153.41,0.063]
[1745564382087,6.9543319,153.42,153.41,0.063]
[1745564384186,32.9543319,153.42,153.41,0.063]
[1745564386672,51.60398076,153.42,153.41,0.063]
[1745564386875,53.03117924,153.42,153.41,0.063]
[1745564387188,6.5549,153.41,153.4,0.063]
[1745564387396,32.15888076,153.41,153.4,0.063]
[1745564387567,51.60398076,153.39,153.38,0.063]
[1745564387887,53.03117924,153.39,153.38,0.063]
[1745564388583,34.38153038,153.39,153.38,0.063]
[1745564388793,27.42719848,153.39,153.38,0.063]
[1745564389363,1.42719848,153.39,153.38,0.063]
[1745564389569,1.42719848,153.4,153.38,0.063]
[1745564390404,27.42719848,153.41,153.38,0.063]
[1745564391667,34.38153038,153.41,153.38,0.063]
[1745564392888,27.42719848,153.41,153.38,7.0173319]
[1745564393066,6.9543319,153.43,153.39,6.9543319]
[1745564393272,1.42719848,153.42,153.39,6.9543319]
[1745564394592,1.42719848,153.42,153.38,0.063]
[1745564394593,6.9543319,153.41,153.38,0.063]
[1745564394791,1.42719848,153.4,153.38,0.063]
[1745564395390,1.42719848,153.4,153.38,7.0173319]
[1745564395591,1.42719848,153.41,153.38,7.0173319]
[1745564399886,1.42719848,153.4,153.38,7.0173319]
[1745564400074,1.42719848,153.41,153.38,7.0173319]
[1745564400291,8.38153038,153.41,153.38,0.063]
[1745564400799,6.9543319,153.39,153.38,0.063]
[1745564401097,8.38153038,153.39,153.38,0.063]
[1745564401791,26.0,153.4,153.38,0.063]
[1745564401994,8.38153038,153.41,153.38,0.063]
[1745564402175,34.38153038,153.41,153.38,0.063]
[1745564402374,27.42719848,153.41,153.38,0.063]
[1745564402693,1.42719848,153.44,153.4,6.9543319]
[1745564402987,1.42719848,153.46,153.43,6.9543319]
[1745564403304,6.9543319,153.47,153.39,14.38564241]
[1745564403489,6.9543319,153.44,153.39,12.94]
[1745564403696,8.38153038,153.44,153.4,6.9543319]
[1745564403901,1.42719848,153.47,153.42,6.9543319]
[1745564404082,1.45719848,153.49,153.44,6.9543319]
[1745564404278,26.0,153.47,153.44,6.9543319]
[1745564404478,1.42719848,153.46,153.43,6.9543319]
[1745564404979,1.42719848,153.46,153.42,6.9543319]
[1745564405680,1.42719848,153.46,153.43,6.9543319]
[1745564405879,8.38153038,153.46,153.42,6.9543319]
[1745564406193,1.42719848,153.46,153.41,6.9543319]
[1745564406394,32.9543319,153.44,153.4,6.9543319]
[1745564406572,1.42719848,153.43,153.41,6.9543319]
[1745564406778,26.0,153.47,153.42,6.9543319]
[1745564407082,6.9543319,153.46,153.42,6.9543319]
[1745564407295,1.57048748,153.45,153.42,6.9543319]
[1745564407879,1.60048748,153.49,153.44,6.9543319]
[1745564408204,0.03,153.49,153.46,6.9543319]
[1745564408683,1.60048748,153.49,153.46,6.9543319]
[1745564408982,1.60048748,153.49,153.45,6.9543319]
[1745564409397,1.60048748,153.49,153.46,6.9543319]
[1745564409580,0.03,153.49,153.46,6.9543319]
[1745564409993,0.03,153.49,153.47,6.9543319]
[1745564410383,0.03,153.49,153.48,6.9543319]
[1745564410786,6.9843319,153.49,153.44,95.7057]
[1745564410989,8.52481938,153.48,153.42,6.51791631]
[1745564411189,1.57048748,153.48,153.46,6.9543319]
[1745564411385,0.03,153.49,153.46,6.9543319]
[1745564411584,1.60048748,153.49,153.46,6.9543319]
[1745564412001,8.55481938,153.49,153.45,6.9543319]
[1745564412196,6.9543319,153.46,153.4,14.5444]
[1745564412508,6.9543319,153.44,153.4,21.4987319]
[1745564412713,6.9543319,153.45,153.4,21.4987319]
[1745564412891,1.57048748,153.44,153.4,21.4987319]
[1745564413219,8.52481938,153.44,153.4,21.4987319]
[1745564413404,1.57048748,153.44,153.4,21.4987319]
[1745564415717,1.57048748,153.44,153.41,6.9543319]
[1745564416298,1.57048748,153.44,153.43,6.9543319]
[1745564416501,1.57048748,153.46,153.43,6.9543319]
[1745564416711,1.57048748,153.47,153.43,6.9543319]
[1745564417404,8.52481938,153.48,153.43,6.9543319]
[1745564418319,6.9543319,153.47,153.42,6.9543319]
[1745564418613,8.52481938,153.46,153.42,6.9543319]
[1745564418807,8.52481938,153.46,153.4,95.7444]
[1745564418808,6.9543319,153.44,153.4,12.92]
[1745564419011,8.52481938,153.43,153.39,6.9543319]
[1745564419329,34.52481938,153.45,153.41,6.9543319]
[1745564419528,20.8541,153.48,153.42,6.9543319]
[1745564419529,8.52481938,153.47,153.42,6.9543319]
[1745564419728,8.52481938,153.47,153.43,6.9543319]
[1745564420022,6.9543319,153.47,153.4,6.5188988]
[1745564420329,6.9543319,153.47,153.43,6.9543319]
[1745564420722,32.9543319,153.48,153.44,6.9543319]
[1745564420906,26.0,153.48,153.45,6.9543319]
[1745564421301,0.03,153.49,153.47,6.9543319]
[1745564422102,0.03,153.49,153.46,6.9543319]
[1745564422517,6.9843319,153.49,153.45,6.9543319]
[1745564423018,0.03,153.49,153.45,6.9543319]
[1745564423532,0.03,153.49,153.46,6.9543319]
[1745564425606,0.03,153.49,153.45,6.51656227]
[1745564425931,0.03,153.49,153.48,6.9543319]
[1745564426102,0.03,153.49,153.47,6.9543319]
[1745564427124,0.03,153.49,153.48,7.09649347]
[1745564427538,0.03,153.49,153.48,6.9543319]
[1745564429744,0.03,153.49,153.48,13.61200037]
[1745564430045,0.03,153.49,153.48,15.16250037]
[1745564430236,0.03,153.54,153.51,26.0]
[1745564430411,0.03,153.54,153.53,7.09649347]
[1745564430747,0.03,153.54,153.53,8.75079347]
[1745564431616,0.03,153.54,153.53,15.26417847]
[1745564436532,0.03,153.56,153.54,44.79181043]
[1745564436734,0.03,153.56,153.55,8.39855176]
[1745564438317,0.03,153.56,153.55,7.09649347]
[1745564438730,0.03,153.56,153.55,13.6090301]
[1745564439314,0.03,153.56,153.55,7.09649347]
[1745564439645,0.03,153.56,153.55,13.6090301]
[1745564440020,0.03,153.56,153.55,14.91122845]
[1745564441941,0.03,153.56,153.55,114.76087731]
[1745564443532,24.7087319,153.66,153.55,89.15689655]
[1745564443736,6.9543319,153.62,153.58,6.9543319]
[1745564444042,6.9543319,153.61,153.57,6.9543319]
[1745564444224,6.9543319,153.6,153.56,19.8743319]
[1745564444539,6.9543319,153.59,153.56,12.92]
[1745564444720,6.9543319,153.59,153.55,6.9543319]
[1745564445060,6.9543319,153.59,153.53,8.1675827]
[1745564445061,6.9543319,153.6,153.56,6.9543319]
[1745564445342,10.8554137,153.59,153.55,10.8554137]
[1745564446023,36.8554137,153.6,153.55,10.8554137]
[1745564446444,26.0,153.6,153.55,10.8554137]
[1745564446644,10.8554137,153.59,153.55,10.8554137]
[1745564447633,10.8554137,153.58,153.54,10.8554137]
[1745564447827,10.8554137,153.59,153.55,10.8554137]
[1745564449923,10.8554137,153.6,153.56,10.8554137]
[1745564450129,10.8554137,153.61,153.57,10.8554137]
[1745564450845,10.8554137,153.63,153.59,10.8554137]
[1745564451038,10.8554137,153.64,153.59,10.8554137]
[1745564451243,10.8554137,153.63,153.59,10.8554137]
[1745564451640,0.03,153.66,153.61,10.8554137]
[1745564451845,0.03,153.66,153.57,13.06216157]
[1745564451846,0.03,153.66,153.64,10.8554137]
[1745564452048,0.03,153.66,153.65,10.8554137]
[1745564453065,0.03,153.66,153.63,0.14216157]
[1745564453223,0.03,153.66,153.65,10.8554137]
[1745564453629,0.03,153.66,153.63,10.8554137]
[1745564454758,0.9154137,153.67,153.63,10.8554137]
[1745564455248,0.03,153.68,153.64,10.8554137]
[1745564455454,0.03,153.68,153.63,0.14216157]
[1745564455635,0.03,153.68,153.66,10.8554137]
[1745564455831,0.03,153.68,153.67,10.8554137]
[1745564457442,0.03,153.68,153.64,10.8554137]
[1745564457632,10.8554137,153.67,153.63,0.14216157]
[1745564457838,10.8554137,153.67,153.62,94.12]
[1745564457839,10.8554137,153.66,153.62,104.9754137]
[1745564458254,10.8554137,153.66,153.62,23.7754137]
[1745564458638,0.03,153.68,153.63,10.8554137]
[1745564458842,10.8554137,153.67,153.63,10.8554137]
[1745564459759,0.03,153.68,153.64,10.8554137]
[1745564459946,10.8854137,153.68,153.64,10.8554137]
[1745564461360,10.8554137,153.67,153.63,10.8554137]
[1745564461531,10.8554137,153.66,153.62,12.92]
[1745564461736,10.8554137,153.66,153.62,23.7754137]
[1745564461936,10.8554137,153.63,153.59,1.5217]
[1745564462162,10.8554137,153.61,153.58,13.02]
[1745564462357,10.8554137,153.6,153.58,13.02]
[1745564462660,10.8554137,153.61,153.58,13.02]
[1745564464068,18.64964886,153.65,153.58,13.02]
[1745564464362,10.8554137,153.61,153.58,13.02]
[1745564464946,0.8554137,153.61,153.58,13.02]
[1745564465751,44.64964886,153.65,153.58,13.02]
[1745564465958,10.8554137,153.61,153.58,13.02]
[1745564467468,26.0,153.67,153.6,10.8554137]
[1745564467658,10.8554137,153.65,153.61,10.8554137]
[1745564468044,10.8554137,153.66,153.61,10.8554137]
[1745564468248,10.8554137,153.66,153.58,19.673284]
[1745564468249,10.8554137,153.66,153.62,10.8554137]
[1745564469360,10.8554137,153.67,153.63,10.8554137]
[1745564469562,10.8554137,153.67,153.62,6.5095014]
[1745564469563,10.8854137,153.68,153.64,10.8554137]
[1745564469949,10.8554137,153.67,153.62,12.3774137]
[1745564470139,0.03,153.68,153.62,18.88697866]
[1745564470344,10.8554137,153.67,153.63,10.8554137]
[1745564470959,10.8554137,153.67,153.62,12.3774137]
[1745564471355,10.8554137,153.67,153.62,1.522]
[1745564471562,10.8554137,153.66,153.62,12.3774137]
[1745564471765,10.8554137,153.67,153.63,10.8554137]
[1745564471962,10.8854137,153.68,153.63,10.8554137]
[1745564472766,10.8554137,153.67,153.63,10.8554137]
[1745564473273,0.03,153.68,153.63,10.8554137]
[1745564473472,10.8854137,153.68,153.63,17.36450709]
[1745564473772,0.03,153.68,153.64,10.8554137]
[1745564474078,10.8854137,153.68,153.64,10.8554137]
[1745564474375,10.8854137,153.68,153.63,6.50911719]
[1745564474681,10.8854137,153.68,153.64,10.8554137]
[1745564475351,10.8854137,153.68,153.63,6.50913444]
[1745564475548,10.8854137,153.68,153.64,10.8554137]
[1745564475757,0.03,153.68,153.67,10.8554137]
[1745564476771,0.03,153.68,153.65,0.14216157]
[1745564476951,10.8854137,153.68,153.63,13.02]
[1745564477159,10.8554137,153.67,153.63,13.02]
[1745564477363,10.8554137,153.66,153.63,13.02]
[1745564478163,10.8554137,153.65,153.63,13.02]
[1745564478371,10.8554137,153.65,153.61,10.8554137]
[1745564478678,10.8554137,153.66,153.61,10.8554137]
[1745564479274,10.8554137,153.65,153.61,10.8554137]
[1745564479479,10.8554137,153.66,153.61,10.8554137]
[1745564479664,10.8554137,153.66,153.62,10.8554137]
[1745564479863,10.8554137,153.67,153.63,10.8554137]
[1745564480071,10.8854137,153.68,153.63,10.8554137]
[1745564480583,0.03,153.68,153.64,10.8554137]
[1745564480962,0.03,153.68,153.65,10.8554137]
[1745564482179,0.03,153.68,153.64,10.8554137]
[1745564482384,10.8854137,153.68,153.63,0.14216157]
[1745564482689,10.8554137,153.67,153.63,10.99757527]
[1745564482863,10.8854137,153.68,153.63,10.99757527]
[1745564484489,10.8854137,153.68,153.63,17.50670457]
[1745564484688,10.8854137,153.68,153.64,10.8554137]
[1745564484874,0.03,153.68,153.64,10.8554137]
[1745564485189,10.8854137,153.68,153.64,10.8554137]
[1745564485375,10.8854137,153.68,153.63,10.99757527]
[1745564485580,10.8554137,153.66,153.62,10.8554137]
[1745564486984,10.8554137,153.66,153.61,13.02]
[1745564487187,10.8554137,153.63,153.61,13.02]
[1745564487499,17.0823137,153.68,153.55,87.77540898]
[1745564487500,10.8554137,153.62,153.55,87.77540898]
[1745564487803,10.8554137,153.6,153.56,10.99757527]
[1745564487972,10.8554137,153.61,153.57,10.8554137]
[1745564488166,44.64964886,153.66,153.58,10.8554137]
[1745564488167,10.8554137,153.62,153.58,10.8554137]
[1745564488387,10.8554137,153.63,153.59,10.8554137]
[1745564488978,10.8554137,153.63,153.58,10.8554137]
[1745564489178,10.8554137,153.62,153.58,10.8554137]
[1745564489586,10.8554137,153.61,153.56,6.65405708]
[1745564489898,10.8554137,153.61,153.56,17.50958084]
[1745564490084,10.8554137,153.62,153.57,10.8554137]
[1745564490479,10.8554137,153.61,153.57,10.8554137]
[1745564490983,10.8554137,153.61,153.56,10.99757527]
[1745564491299,26.0,153.66,153.57,10.8554137]
[1745564491598,10.8554137,153.61,153.57,10.8554137]
[1745564491768,10.8554137,153.6,153.56,10.99757527]
[1745564491977,10.8554137,153.61,153.57,10.8554137]
[1745564494203,10.8554137,153.62,153.58,10.8554137]
[1745564494391,10.8554137,153.63,153.58,10.8554137]
[1745564494598,10.8554137,153.62,153.58,10.8554137]
[1745564497308,10.8554137,153.61,153.57,10.8554137]
[1745564497506,10.8554137,153.6,153.55,36.9184137]
[1745564497722,10.8554137,153.59,153.55,36.9184137]
[1745564498595,10.8554137,153.59,153.55,0.20516157]
[1745564498923,10.8554137,153.58,153.55,0.063]
[1745564499627,10.8554137,153.56,153.55,0.063]
[1745564502005,10.8554137,153.57,153.55,0.063]
[1745564502498,10.8554137,153.56,153.55,0.063]
[1745564503600,36.8554137,153.56,153.55,0.063]
[1745564506291,10.8554137,153.56,153.55,0.063]
[1745564507516,10.8554137,153.57,153.55,0.063]
[1745564508200,10.8554137,153.56,153.55,0.063]
[1745564510119,10.8554137,153.57,153.55,0.063]
[1745564510318,26.0,153.58,153.55,0.063]
[1745564510514,10.8554137,153.57,153.55,0.063]
[1745564511104,10.8554137,153.6,153.56,10.8554137]
[1745564511898,10.8554137,153.61,153.57,10.8554137]
[1745564512118,10.8554137,153.63,153.58,10.8554137]
[1745564512704,10.8554137,153.62,153.58,10.8554137]
[1745564513913,10.8554137,153.63,153.58,10.8554137]
[1745564514118,10.8554137,153.64,153.6,10.8554137]
[1745564514817,10.8554137,153.65,153.6,10.8554137]
[1745564515019,10.8554137,153.64,153.6,10.8554137]
[1745564517028,10.8554137,153.66,153.61,10.8554137]
[1745564517338,10.8554137,153.65,153.61,10.8554137]
[1745564518125,10.8554137,153.65,153.6,10.8554137]
[1745564518946,10.8554137,153.65,153.59,12.93224054]
[1745564518947,10.8554137,153.65,153.61,10.8554137]
[1745564521131,10.8554137,153.65,153.6,10.8554137]
[1745564521949,10.8554137,153.65,153.59,12.93223402]
[1745564522116,10.8554137,153.65,153.6,10.8554137]
[1745564522947,10.8554137,153.65,153.61,10.8554137]
[1745564524515,10.8554137,153.64,153.6,10.8554137]
[1745564525230,10.8554137,153.65,153.61,10.8554137]
[1745564526025,26.03,153.68,153.63,10.8554137]
[1745564526026,10.8554137,153.67,153.63,10.8554137]
[1745564527510,10.8554137,153.66,153.62,10.8554137]
[1745564527710,10.8554137,153.63,153.59,10.8554137]
[1745564528532,10.8554137,153.61,153.57,10.8554137]
[1745564528713,10.8554137,153.6,153.56,23.8954137]
[1745564528914,10.8554137,153.6,153.56,30.40745894]
[1745564529113,10.8554137,153.64,153.59,10.8554137]
[1745564529517,10.8554137,153.63,153.59,10.8554137]
[1745564529925,10.8554137,153.66,153.61,10.8554137]
[1745564530439,10.8554137,153.66,153.62,10.8554137]
[1745564531225,10.8554137,153.65,153.61,10.8554137]
[1745564531537,10.8554137,153.62,153.59,12.98]
[1745564531837,10.8554137,153.61,153.57,10.8554137]
[1745564532035,10.8554137,153.62,153.57,10.8554137]
[1745564532618,10.8554137,153.62,153.58,10.8554137]
[1745564532819,10.8554137,153.63,153.58,10.8554137]
[1745564533037,10.8554137,153.62,153.57,6.5114754]
[1745564533232,10.8554137,153.6,153.56,1.5612]
[1745564533752,10.8554137,153.6,153.56,12.4166137]
[1745564533956,10.8554137,153.61,153.56,18.92870269]
[1745564534161,10.8554137,153.59,153.56,1.5612]
[1745564534339,10.8554137,153.59,153.55,13.043]
[1745564534537,10.8554137,153.58,153.55,13.043]
[1745564534857,6.3585,153.65,153.57,10.8554137]
[1745564535049,10.8554137,153.63,153.58,10.8554137]
[1745564535245,10.8554137,153.62,153.58,10.8554137]
[1745564536837,0.8554137,153.62,153.58,10.8554137]
[1745564537957,10.8554137,153.61,153.57,10.3554137]
[1745564538280,10.8554137,153.58,153.55,13.043]
[1745564538444,10.8554137,153.57,153.55,0.063]
[1745564538762,10.8554137,153.56,153.55,0.063]
[1745564538950,10.8554137,153.57,153.55,0.063]
[1745564539520,10.8554137,153.56,153.55,0.063]
[1745564540561,44.64964886,153.61,153.55,0.063]
[1745564540760,10.8554137,153.59,153.55,0.063]
[1745564541059,10.8554137,153.59,153.55,10.9184137]
[1745564541456,10.8554137,153.59,153.55,0.063]
[1745564541763,26.0,153.61,153.55,0.063]
[1745564542063,10.8554137,153.58,153.55,0.063]
[1745564542251,10.8554137,153.57,153.55,0.063]
[1745564542433,10.8554137,153.58,153.55,0.063]
[1745564543128,10.8554137,153.57,153.55,0.063]
[1745564543355,10.8554137,153.56,153.55,0.063]
[1745564543835,18.64964886,153.63,153.55,0.063]
[1745564543836,1.2741,153.67,153.57,18.64964886]
[1745564544078,0.03,153.69,153.65,10.8554137]
[1745564544238,10.8854137,153.69,153.64,10.8554137]
[1745564544432,10.8854137,153.68,153.63,10.8554137]
[1745564544833,10.8554137,153.67,153.62,10.8554137]
[1745564545745,10.8554137,153.67,153.63,10.8554137]
[1745564548452,10.8554137,153.65,153.6,10.8554137]
[1745564548642,10.8554137,153.65,153.6,17.36568855]
[1745564548843,10.8554137,153.65,153.61,10.8554137]
[1745564551567,10.8554137,153.65,153.6,10.8554137]
[1745564551752,10.8554137,153.64,153.58,0.14216157]
[1745564551959,10.8554137,153.63,153.59,10.8554137]
[1745564552264,10.8554137,153.64,153.6,10.8554137]
[1745564552556,26.0,153.66,153.62,10.8554137]
[1745564552866,12.98,153.72,153.63,10.8554137]
[1745564552867,10.8554137,153.67,153.63,10.8554137]
[1745564553453,10.8554137,153.69,153.65,10.8554137]
[1745564554538,10.8554137,153.69,153.62,20.83133294]
[1745564554539,10.8554137,153.69,153.63,1.5906]
[1745564554736,10.8854137,153.7,153.66,10.8554137]
[1745564555155,0.03,153.7,153.67,10.8554137]
[1745564556062,0.03,153.7,153.69,10.8554137]
[1745564556571,0.03,153.7,153.67,14.32134837]
[1745564556572,0.03,153.7,153.68,10.8554137]
[1745564556741,0.03,153.7,153.69,10.8554137]
[1745564557062,0.03,153.7,153.68,10.8554137]
[1745564557761,0.03,153.7,153.69,10.8554137]
[1745564560960,0.03,153.73,153.7,18.79181043]
[1745564561262,0.03,153.75,153.73,0.14216157]
[1745564561442,0.03,153.75,153.74,82.48378944]
[1745564561762,0.03,153.75,153.74,97.32331318]
[1745564561968,0.03,153.75,153.74,106.87837527]
[1745564562348,0.03,153.75,153.74,125.52802413]
[1745564562572,0.03,153.75,153.74,55.18343783]
[1745564562741,0.03,153.75,153.74,61.68792592]
[1745564562941,0.03,153.75,153.74,50.83251222]
[1745564563948,0.03,153.75,153.74,44.32802413]